bitfinex/quotes_ETHUSD_20250326
["timestamp","ask_amount","ask_price","bid_price","bid_amount"]
[1742948168859,3.0,2067.7,2067.2,5.59568]
[1742948169071,3.0,2067.7,2067.6,0.39325767]
[1742948169360,7.83629,2067.7,2067.2,5.5958]
[1742948169739,7.83629,2067.7,2067.3,0.39460203]
[1742948169948,3.0,2067.7,2067.2,10.43309]
[1742948170144,3.0,2067.9,2067.5,5.62711]
[1742948170464,4.83536,2068.1,2067.6,19.72964767]
[1742948170664,0.8216,2068.2,2067.7,9.67234]
[1742948170978,0.8216,2068.2,2067.8,0.7905]
[1742948171134,3.0,2068.2,2067.8,6.01806695]
[1742948171336,3.0,2068.2,2067.8,15.68209695]
[1742948171656,5.65734,2068.0,2067.8,14.89159695]
[1742948171865,3.0,2067.9,2067.8,0.39159695]
[1742948172181,3.0,2067.9,2067.6,0.7905]
[1742948172375,3.0,2067.9,2067.7,0.39204494]
[1742948173033,7.83605,2067.8,2067.7,0.39204494]
[1742948173267,9.485398,2067.8,2067.7,0.39204494]
[1742948173467,9.485398,2067.8,2067.3,0.7905]
[1742948173965,4.83642,2067.7,2067.4,0.39273393]
[1742948174268,4.83653,2067.6,2067.4,0.39273393]
[1742948174932,8.65792,2067.7,2067.4,0.39273393]
[1742948176972,4.83663,2067.6,2067.4,0.39273393]
[1742948177274,4.83663,2067.6,2067.1,5.62818]
[1742948177474,7.83663,2067.6,2067.5,0.39228581]
[1742948177785,4.83676,2067.5,2067.1,15.2905]
[1742948177950,4.83676,2067.5,2067.0,4.83774]
[1742948178141,4.83755,2067.2,2066.9,7.30733805]
[1742948178471,4.83755,2067.2,2066.9,6.51683805]
[1742948178472,4.83781,2067.1,2066.9,6.51683805]
[1742948178964,9.67518,2067.2,2066.9,6.51683805]
[1742948179170,4.83772,2067.1,2066.9,6.51683805]
[1742948181674,4.83792,2067.0,2066.9,6.51683805]
[1742948182274,8.65936,2067.1,2066.9,6.51683805]
[1742948183688,3.8216,2067.1,2066.9,6.51683805]
[1742948183858,3.0,2067.1,2066.9,21.01683805]
[1742948184258,3.0,2067.1,2066.9,6.51683805]
[1742948184787,3.0,2067.1,2066.9,21.01683805]
[1742948185086,7.83777,2067.1,2066.9,21.01683805]
[1742948185284,4.83792,2067.0,2066.9,21.01683805]
[1742948185992,4.83792,2067.0,2066.9,21.41297109]
[1742948186763,4.83792,2067.0,2066.9,6.91297109]
[1742948187297,4.83792,2067.0,2066.9,21.41297109]
[1742948188096,7.83777,2067.1,2066.9,21.41297109]
[1742948188714,7.83777,2067.1,2066.9,6.91297109]
[1742948188904,12.67564,2067.1,2066.9,6.91297109]
[1742948189402,5.64212,2067.0,2066.9,6.91297109]
[1742948189606,3.8042,2067.2,2066.9,6.91297109]
[1742948189775,3.0,2067.2,2066.9,6.91297109]
[1742948190206,3.0,2067.3,2067.0,4.83783]
[1742948190416,3.0,2067.4,2067.1,1.57099385]
[1742948190986,5.64027,2067.8,2067.3,4.83713]
[1742948191191,0.8042,2067.8,2067.4,1.21528171]
[1742948191422,9.34685,2067.9,2067.4,6.05215171]
[1742948191620,3.0,2067.8,2067.4,6.05215171]
[1742948191830,3.0,2067.8,2067.4,7.14106888]
[1742948192000,14.18287,2067.9,2067.4,7.14106888]
[1742948192403,7.83609,2067.8,2067.4,2.30419888]
[1742948192716,3.0,2067.8,2067.4,7.14116888]
[1742948193392,3.0,2067.8,2067.4,7.14107888]
[1742948193749,9.34636,2068.1,2067.6,4.83643]
[1742948194129,9.34636,2068.1,2067.7,0.39197956]
[1742948194429,3.0,2067.9,2067.7,0.39197956]
[1742948194796,3.0,2068.0,2067.6,4.83652]
[1742948195032,3.0,2068.0,2067.7,0.39154277]
[1742948195361,3.0,2068.1,2067.8,0.8208]
[1742948195736,3.0,2068.1,2067.9,0.39064683]
[1742948196772,4.8349,2068.3,2067.9,0.39064683]
[1742948196949,3.0,2068.2,2067.9,0.39064683]
[1742948197889,7.83516,2068.2,2067.9,0.39064683]
[1742948199654,12.67047,2068.2,2067.9,0.39064683]
[1742948199976,7.83516,2068.2,2067.9,0.39064683]
[1742948200670,3.0,2068.2,2067.9,0.39064683]
[1742948200870,3.0,2068.2,2067.9,1.57734152]
[1742948203271,3.0,2068.3,2067.9,6.41302152]
[1742948204889,3.0,2068.4,2068.0,4.83558]
[1742948205266,3.0,2068.4,2068.1,0.38697719]
[1742948205683,7.83465,2068.4,2068.1,1.17847719]
[1742948205991,12.66949,2068.4,2068.1,1.17847719]
[1742948206189,5.61482,2068.3,2068.1,0.38697719]
[1742948206390,4.83512,2068.2,2067.8,4.83605]
[1742948206578,5.61482,2068.3,2067.9,0.38787295]
[1742948206883,4.83492,2068.3,2067.9,0.38787295]
[1742948207479,4.83492,2068.3,2067.9,5.22367295]
[1742948207692,7.83472,2068.4,2068.0,1.0059573]
[1742948207989,7.83472,2068.4,2068.1,0.38697719]
[1742948208166,12.66955,2068.4,2068.0,0.7915]
[1742948208494,7.83472,2068.4,2068.1,0.38697719]
[1742948209385,12.66951,2068.4,2068.1,0.38697719]
[1742948209592,7.83472,2068.4,2068.1,0.38697719]
[1742948211463,4.83492,2068.3,2068.1,0.38697719]
[1742948211663,7.83472,2068.4,2068.1,0.38697719]
[1742948212089,12.66956,2068.4,2068.1,0.38697719]
[1742948212287,4.83489,2068.3,2068.1,0.38697719]
[1742948215207,7.83472,2068.4,2068.1,0.38697719]
[1742948215893,12.66956,2068.4,2068.1,0.38697719]
[1742948216199,12.66955,2068.4,2068.1,0.38697719]
[1742948216408,7.83472,2068.4,2068.1,0.38697719]
[1742948216700,12.66957,2068.4,2068.1,0.38697719]
[1742948217075,4.8349,2068.3,2068.1,0.38697719]
[1742948223725,3.7877,2068.4,2068.1,0.38697719]
[1742948224026,4.85351,2068.9,2068.5,0.7952]
[1742948224324,4.85351,2068.9,2068.6,0.38458571]
[1742948224325,0.02,2068.9,2068.6,0.38458571]
[1742948224520,4.85352,2068.9,2068.6,0.38458571]
[1742948224710,3.0,2068.8,2068.6,0.38458571]
[1742948224905,7.83373,2068.8,2068.6,0.38458571]
[1742948225113,4.83395,2068.7,2068.6,0.38458571]
[1742948225617,3.0,2068.7,2068.6,0.38393085]
[1742948225793,3.0,2068.7,2068.4,4.8345]
[1742948225999,3.0,2068.7,2068.5,6.5768785]
[1742948226208,3.02,2068.9,2068.5,6.5768785]
[1742948226733,0.02,2068.9,2068.8,0.7952]
[1742948226893,0.02,2068.9,2068.8,5.62892]
[1742948227235,0.02,2068.9,2068.8,6.0119557]
[1742948227419,0.02,2068.9,2068.8,7.03930571]
[1742948233203,0.02,2068.9,2068.8,7.99207852]
[1742948239113,0.02,2068.9,2068.8,2.36315852]
[1742948241212,0.02,2068.9,2068.8,7.19687852]
[1742948242113,0.02,2068.9,2068.8,2.36315852]
[1742948242344,0.02,2068.9,2068.8,1.33580851]
[1742948243208,0.02,2068.9,2068.8,0.3830357]
[1742948243441,0.02,2068.9,2068.6,4.83418]
[1742948243651,0.02,2068.9,2068.7,0.38010101]
[1742948247520,0.02,2068.9,2068.5,10.23169]
[1742948247721,0.02,2068.9,2068.8,0.37971895]
[1742948247952,0.02,2068.9,2068.7,4.83394]
[1742948248124,0.02,2068.9,2068.8,5.21343895]
[1742948248324,0.02,2068.9,2068.8,0.37971895]
[1742948248737,0.02,2068.9,2068.8,5.21343895]
[1742948248939,0.02,2068.9,2068.8,6.45077174]
[1742948250440,0.02,2068.9,2068.8,1.61705174]
[1742948250637,0.02,2068.9,2068.8,6.45077174]
[1742948257795,0.02,2068.9,2068.8,7.40229994]
[1742948261992,4.85348,2068.9,2068.8,0.37971895]
[1742948262491,4.85348,2068.9,2068.8,0.37921726]
[1742948262790,4.85348,2068.9,2068.5,5.82604953]
[1742948262978,4.85348,2068.9,2068.8,0.37921726]
[1742948263180,0.02,2068.9,2068.7,4.83385]
[1742948263359,0.02,2068.9,2068.8,5.69632226]
[1742948266118,0.02,2068.9,2068.8,0.86260226]
[1742948266426,0.02,2068.9,2068.8,5.21293726]
[1742948267902,0.02,2068.9,2068.8,0.37921726]
[1742948268589,0.02,2068.9,2068.8,5.21293726]
[1742948276076,0.02,2068.9,2068.8,19.71293726]
[1742948276676,0.02,2068.9,2068.8,20.46663726]
[1742948276837,0.02,2068.9,2068.8,24.02668333]
[1742948279084,5.61901,2069.4,2069.0,4.83307]
[1742948279450,0.7867,2069.4,2069.1,5.21108473]
[1742948279689,0.7867,2069.4,2069.2,14.5]
[1742948279841,0.7867,2069.4,2069.3,0.37722001]
[1742948280254,5.61905,2069.4,2069.2,14.5]
[1742948280459,5.61905,2069.4,2069.3,0.37722001]
[1742948280860,5.61905,2069.4,2069.2,14.5]
[1742948281108,5.61905,2069.4,2069.3,0.37722001]
[1742948281408,5.61905,2069.4,2069.0,4.83319]
[1742948281574,5.61905,2069.4,2069.3,0.37722001]
[1742948281765,5.61905,2069.4,2069.1,15.466666]
[1742948282096,5.61905,2069.4,2069.3,0.37722001]
[1742948282286,5.61905,2069.4,2069.2,0.37766735]
[1742948282481,5.61905,2069.4,2069.3,0.37722001]
[1742948282683,0.7867,2069.4,2069.3,0.37722001]
[1742948282873,0.7867,2069.4,2069.1,20.299666]
[1742948283074,0.7867,2069.4,2069.3,0.37722001]
[1742948283261,0.7867,2069.4,2069.2,2.89094395]
[1742948283571,0.7867,2069.4,2069.3,0.37722001]
[1742948284018,0.7867,2069.4,2069.2,2.5132766]
[1742948284205,0.7867,2069.4,2069.3,0.37722001]
[1742948284696,0.7867,2069.4,2069.2,2.5132766]
[1742948285000,0.7867,2069.4,2069.3,0.37722001]
[1742948285202,0.7867,2069.4,2069.2,2.5132766]
[1742948285425,0.7867,2069.4,2069.3,0.37722001]
[1742948285782,0.7867,2069.4,2069.2,2.5132766]
[1742948285984,0.7867,2069.4,2069.3,0.37722001]
[1742948286180,0.7867,2069.4,2069.2,2.5132766]
[1742948286425,0.7867,2069.4,2069.3,0.37722001]
[1742948286611,0.7867,2069.4,2069.1,6.78214284]
[1742948286784,0.7867,2069.4,2069.3,0.37722001]
[1742948287323,7.83215,2069.5,2069.3,4.83239]
[1742948287324,3.0,2069.5,2069.3,4.83239]
[1742948287524,0.7867,2069.6,2069.4,0.37677271]
[1742948287685,5.61825,2069.8,2069.4,5.20898271]
[1742948287887,3.7867,2069.8,2069.4,19.70890271]
[1742948288196,3.7867,2069.8,2069.5,4.83204]
[1742948288397,3.7867,2069.8,2069.5,0.37567129]
[1742948288817,3.7867,2069.8,2069.5,19.70772129]
[1742948289026,3.7867,2069.8,2069.5,22.16170942]
[1742948289216,3.7867,2069.8,2069.5,7.66170942]
[1742948289382,3.7867,2069.8,2069.5,5.20772129]
[1742948290392,3.0,2069.8,2069.6,4.83171]
[1742948290586,3.0,2069.9,2069.6,5.20693408]
[1742948291021,0.7654,2070.0,2069.6,5.20692408]
[1742948291333,0.7654,2070.0,2069.8,4.83134]
[1742948291531,0.7654,2070.0,2069.9,0.37263982]
[1742948292031,0.7654,2070.0,2069.7,9.71129126]
[1742948292334,3.0,2070.1,2069.8,5.2044269]
[1742948292707,3.0,2070.1,2069.8,10.0356669]
[1742948292889,3.0,2070.1,2069.8,10.0355369]
[1742948293312,3.0,2070.1,2069.8,24.5355369]
[1742948293522,3.0,2070.1,2069.8,19.7042969]
[1742948293822,8.59586,2070.2,2069.8,22.7831705]
[1742948294027,13.42651,2070.2,2069.8,22.7831705]
[1742948294228,4.83084,2070.1,2069.8,17.9519605]
[1742948294433,4.83073,2070.1,2069.8,17.9519605]
[1742948294923,5.59586,2070.2,2069.8,17.9519605]
[1742948294924,5.59591,2070.2,2069.8,3.4519605]
[1742948295131,5.59591,2070.2,2069.8,0.3730869]
[1742948295352,4.83079,2070.1,2069.8,0.3730869]
[1742948298573,10.42654,2070.2,2069.8,5.2044469]
[1742948298738,0.7654,2070.2,2069.8,1.1507869]
[1742948298928,3.0,2070.3,2069.9,4.83092]
[1742948299263,7.8303,2070.3,2070.0,1.4521499]
[1742948299918,3.0,2070.3,2070.0,6.2830099]
[1742948300168,7.83023,2070.3,2070.0,1.4521499]
[1742948302348,7.83023,2070.3,2070.0,15.9521499]
[1742948304177,3.0,2070.3,2070.0,15.9521499]
[1742948304380,3.0,2070.3,2070.1,2.07830699]
[1742948304551,7.83025,2070.3,2070.1,2.07830699]
[1742948304974,7.83025,2070.3,2070.2,0.36994727]
[1742948308894,4.83068,2070.1,2070.0,1.08130869]
[1742948309073,0.7866,2070.1,2069.7,5.80260913]
[1742948309273,4.83051,2070.2,2069.8,4.83137]
[1742948309452,4.83051,2070.2,2069.8,19.33137]
[1742948311299,4.83051,2070.2,2069.8,14.5]
[1742948311471,4.83051,2070.2,2069.8,17.54171891]
[1742948311684,4.8307,2070.1,2069.8,17.54171891]
[1742948313698,4.83051,2070.2,2069.8,22.37305891]
[1742948314113,9.66114,2070.2,2069.8,22.37305891]
[1742948315291,4.83051,2070.2,2069.8,22.37305891]
[1742948315503,4.83051,2070.2,2069.9,2.8175638]
[1742948315882,9.66113,2070.2,2069.8,4.83121]
[1742948316207,9.66114,2070.2,2069.9,14.5]
[1742948317204,4.83068,2070.1,2069.9,14.5]
[1742948317903,4.83052,2070.2,2069.9,14.5]
[1742948318703,4.83072,2070.1,2069.9,14.5]
[1742948319002,4.83072,2070.1,2069.9,16.53023391]
[1742948319775,8.61683,2070.3,2070.0,4.83091]
[1742948319975,4.83056,2070.2,2069.9,16.53023391]
[1742948320186,9.66118,2070.2,2069.9,16.53023391]
[1742948320506,4.83068,2070.1,2069.9,16.53023391]
[1742948320676,4.83068,2070.1,2069.9,14.5]
[1742948321182,4.83068,2070.1,2070.0,0.37010019]
[1742948323583,4.83056,2070.2,2070.0,0.37010019]
[1742948324306,9.6612,2070.2,2070.0,0.37010019]
[1742948324503,4.83056,2070.2,2070.0,0.37010019]
[1742948324705,4.83056,2070.2,2070.0,2.43478565]
[1742948324911,4.83068,2070.1,2070.0,2.43478565]
[1742948325387,4.83068,2070.1,2070.0,0.37010019]
[1742948326999,4.83068,2070.1,2069.8,0.94541443]
[1742948327203,4.83068,2070.1,2070.0,0.37010019]
[1742948327399,4.83068,2070.1,2069.9,0.37054723]
[1742948327699,4.83068,2070.1,2070.0,0.37010019]
[1742948328027,4.83068,2070.1,2069.7,20.30271913]
[1742948328193,4.83068,2070.1,2070.0,0.37010019]
[1742948328515,4.83068,2070.1,2069.8,3.04170991]
[1742948328689,4.83068,2070.1,2070.0,0.37010019]
[1742948328892,4.83068,2070.1,2069.9,0.37054723]
[1742948329088,3.7866,2070.3,2070.0,0.37010019]
[1742948329296,0.7817,2070.5,2070.2,4.83026]
[1742948329503,5.61155,2070.5,2070.2,1.00311002]
[1742948329715,5.61155,2070.5,2070.3,0.36875934]
[1742948330134,5.61155,2070.5,2070.2,1.00311002]
[1742948330282,8.61155,2070.5,2070.4,0.36826889]
[1742948330481,8.61155,2070.5,2070.3,0.36871575]
[1742948330682,8.61155,2070.5,2070.4,0.36826889]
[1742948331118,8.61155,2070.5,2070.2,1.00311002]
[1742948331311,8.61155,2070.5,2070.4,0.36826889]
[1742948331619,4.82956,2070.6,2070.4,0.36826889]
[1742948331793,4.82956,2070.6,2070.2,6.62615002]
[1742948331995,4.82956,2070.6,2070.5,0.36782206]
[1742948332201,9.65926,2070.6,2070.2,6.62615002]
[1742948332515,4.82956,2070.6,2070.5,0.36782206]
[1742948332706,9.65919,2070.6,2070.2,6.62615002]
[1742948332919,4.82956,2070.6,2070.5,0.36782206]
[1742948333123,0.7817,2070.7,2070.2,6.62615002]
[1742948333303,3.7817,2070.7,2070.5,0.36782206]
[1742948333632,8.61109,2070.7,2070.6,0.36737529]
[1742948334142,8.61109,2070.7,2070.3,6.942745]
[1742948334319,8.61109,2070.7,2070.6,0.36571944]
[1742948334521,7.82908,2070.8,2070.3,11.772805]
[1742948334842,12.65832,2070.8,2070.4,1.3568515]
[1742948335139,12.65832,2070.8,2070.4,1.72337741]
[1742948335309,7.82908,2070.8,2070.4,1.72337741]
[1742948335506,0.57,2070.9,2070.5,0.7688]
[1742948335711,3.57,2070.9,2070.6,5.07857774]
[1742948335911,3.57,2070.9,2070.6,0.61485005]
[1742948336111,3.57,2070.9,2070.7,14.5]
[1742948336409,3.57,2070.9,2070.8,0.36460818]
[1742948336610,0.57,2070.9,2070.7,14.5]
[1742948336936,3.57,2070.9,2070.8,0.36460818]
[1742948337344,3.57,2070.9,2070.7,14.5]
[1742948337510,8.39881,2070.9,2070.8,0.36460818]
[1742948337906,13.22784,2070.9,2070.5,0.7688]
[1742948338111,8.39881,2070.9,2070.8,0.36460818]
[1742948338328,8.39881,2070.9,2070.5,15.2688]
[1742948338544,8.39881,2070.9,2070.8,0.36460818]
[1742948338721,4.82906,2070.8,2070.5,20.09854]
[1742948339538,4.82906,2070.8,2070.5,21.07725927]
[1742948339743,4.82906,2070.8,2070.6,2.10772593]
[1742948340040,5.39885,2070.9,2070.5,6.57708927]
[1742948340242,5.39885,2070.9,2070.5,5.59837]
[1742948341328,4.82905,2070.8,2070.5,5.59837]
[1742948341662,5.39888,2070.9,2070.5,5.59837]
[1742948342030,0.57,2070.9,2070.6,4.82944]
[1742948342235,0.57,2070.9,2070.7,1.042781]
[1742948346270,0.57,2070.9,2070.7,5.872041]
[1742948346569,0.57,2070.9,2070.7,1.042781]
[1742948348452,0.57,2070.9,2070.8,0.7791]
[1742948349387,0.57,2070.9,2070.7,5.871901]
[1742948349561,0.57,2070.9,2070.8,1.0701411]
[1742948350181,0.57,2070.9,2070.6,5.60847]
[1742948350384,0.02,2070.9,2070.6,10.43785]
[1742948350683,0.02,2070.9,2070.6,5.60845]
[1742948351045,0.02,2070.9,2070.7,0.36287711]
[1742948351479,4.84894,2070.9,2070.7,0.36287711]
[1742948351705,4.84894,2070.9,2070.5,4.82957]
[1742948351889,4.84894,2070.9,2070.8,0.36243042]
[1742948352253,4.84894,2070.9,2070.6,1.493864]
[1742948352501,4.84894,2070.9,2070.8,0.36243042]
[1742948352708,4.84894,2070.9,2070.7,0.36287711]
[1742948352977,4.84894,2070.9,2070.8,0.36243042]
[1742948353186,4.84894,2070.9,2070.6,1.493864]
[1742948353488,8.58547,2070.8,2070.7,0.36309485]
[1742948353653,4.82957,2070.6,2070.3,0.75051849]
[1742948355460,0.7563,2070.5,2070.3,0.75051849]
[1742948356174,0.7563,2070.5,2070.2,10.66374002]
[1742948356375,0.7563,2070.5,2070.3,1.14142585]
[1742948356992,7.82956,2070.6,2070.3,1.14142585]
[1742948357291,3.0,2070.6,2070.4,4.82983]
[1742948357498,8.58576,2070.7,2070.3,6.75070585]
[1742948357697,13.41526,2070.7,2070.3,6.75070585]
[1742948358298,3.0,2070.7,2070.4,6.08834259]
[1742948358484,5.60533,2070.9,2070.4,6.08834259]
[1742948358485,5.60533,2070.9,2070.5,4.82962]
[1742948358687,5.60523,2070.9,2070.5,4.82962]
[1742948359498,4.82918,2070.8,2070.4,6.08838259]
[1742948359698,9.65841,2070.8,2070.4,6.08838259]
[1742948359999,5.58582,2070.6,2070.4,1.25841259]
[1742948361398,0.7563,2070.6,2070.4,1.25841259]
[1742948362681,5.58592,2070.6,2070.2,6.58407851]
[1742948363012,4.82977,2070.5,2070.2,6.58407851]
[1742948364112,5.58592,2070.6,2070.2,6.58407851]
[1742948364923,5.58592,2070.6,2070.2,1.75362851]
[1742948364924,4.8298,2070.5,2070.2,1.75362851]
[1742948365076,4.83003,2070.4,2070.0,14.16149]
[1742948365409,4.83003,2070.4,2070.0,9.33074]
[1742948365598,4.83003,2070.4,2070.0,4.83074]
[1742948365799,4.83003,2070.4,2070.0,5.930078]
[1742948365976,4.83003,2070.4,2070.1,0.36703894]
[1742948366980,4.82981,2070.5,2070.1,5.19767894]
[1742948368021,9.65977,2070.5,2070.1,5.19767894]
[1742948368513,4.83006,2070.4,2070.1,0.36703894]
[1742948372421,4.83006,2070.4,2070.1,5.19771894]
[1742948372622,4.83006,2070.4,2070.1,6.93530389]
[1742948373023,4.83006,2070.4,2070.1,2.10462389]
[1742948373200,4.83006,2070.4,2070.2,0.35979728]
[1742948373526,4.83006,2070.4,2070.3,0.36638466]
[1742948373890,4.83006,2070.4,2070.2,0.35979728]
[1742948374086,4.83006,2070.4,2070.3,0.36638466]
[1742948374294,3.86423,2070.2,2069.8,4.83125]
[1742948374507,3.86423,2070.2,2069.7,5.61311]
[1742948374508,4.83071,2070.1,2069.9,0.36817255]
[1742948374709,4.83071,2070.1,2069.7,10.44449]
[1742948374990,4.62173,2070.2,2069.8,5.19995964]
[1742948375213,4.83068,2070.1,2069.8,0.36861964]
[1742948375615,4.83068,2070.1,2069.9,0.35993882]
[1742948375812,4.83068,2070.1,2070.0,0.36772552]
[1742948377427,4.83068,2070.1,2070.0,0.72766434]
[1742948382137,8.588,2070.2,2070.0,0.72766434]
[1742948382433,3.0,2070.3,2070.0,6.90982177]
[1742948382805,7.83023,2070.3,2070.0,6.90982177]
[1742948383227,7.83023,2070.3,2070.1,0.35993882]
[1742948383416,7.83023,2070.3,2070.2,0.36750682]
[1742948384801,7.83023,2070.3,2069.9,4.83104]
[1742948385037,7.83023,2070.3,2070.0,0.36840076]
[1742948387246,7.83023,2070.3,2070.1,0.36006927]
[1742948387536,7.83023,2070.3,2070.2,0.36750682]
[1742948388545,7.83023,2070.3,2070.2,0.72757609]
[1742948390740,3.0,2070.3,2070.2,0.72757609]
[1742948391046,3.0,2070.3,2070.2,1.38254212]
[1742948391246,3.0,2070.3,2070.2,0.72757609]
[1742948391543,4.83009,2070.4,2070.2,0.72757609]
[1742948392514,9.66027,2070.4,2070.2,0.72757609]
[1742948392714,4.83021,2070.3,2070.2,0.72757609]
[1742948392939,5.63881,2070.3,2070.2,0.72757609]
[1742948393112,6.6857,2070.3,2070.2,0.72757609]
[1742948394223,5.63881,2070.3,2070.2,0.72757609]
[1742948395643,4.83021,2070.3,2070.2,0.72757609]
[1742948401350,3.86381,2070.3,2070.2,0.72757609]
[1742948401644,4.83009,2070.4,2070.2,0.72757609]
[1742948401854,4.83021,2070.3,2070.2,0.72757609]
[1742948406952,7.83,2070.4,2070.2,0.72757609]
[1742948407148,3.0,2070.5,2070.2,1.53427609]
[1742948407357,4.82986,2070.5,2070.3,0.63649361]
[1742948407554,9.65978,2070.5,2070.3,0.36673316]
[1742948407744,9.65978,2070.5,2070.2,1.16676927]
[1742948407950,9.65978,2070.5,2070.4,0.36656951]
[1742948408137,9.65978,2070.5,2070.2,1.16676927]
[1742948408337,4.82986,2070.5,2070.4,0.36656951]
[1742948408566,4.82986,2070.5,2070.3,0.36006927]
[1742948408769,9.65979,2070.5,2070.4,0.36639525]
[1742948410280,4.82986,2070.5,2070.4,0.36639525]
[1742948410567,3.8522,2070.9,2070.5,0.8132]
[1742948410766,0.02,2070.9,2070.6,1.56795953]
[1742948410972,0.02,2070.9,2070.6,6.76254269]
[1742948411360,4.84882,2070.9,2070.6,1.93311269]
[1742948411579,4.82925,2070.8,2070.6,1.93311269]
[1742948411938,4.82923,2070.8,2070.6,1.93311269]
[1742948412562,4.82923,2070.8,2070.7,0.36006927]
[1742948412749,4.82923,2070.8,2070.7,0.7247757]
[1742948412949,7.82923,2070.8,2070.7,0.7247757]
[1742948416638,8.66143,2070.8,2070.7,0.7247757]
[1742948416840,10.495314,2070.8,2070.7,0.36006927]
[1742948417473,4.82977,2070.5,2070.3,0.36006927]
[1742948417863,4.82977,2070.5,2070.4,0.36587255]
[1742948418173,4.82975,2070.5,2070.4,0.36587255]
[1742948418543,9.65879,2070.7,2070.4,0.36587255]
[1742948418745,4.82954,2070.6,2070.4,0.36587255]
[1742948419882,4.82954,2070.6,2070.5,0.36006927]
[1742948420375,4.82954,2070.6,2070.5,0.72549499]
[1742948420585,4.82928,2070.7,2070.5,0.72549499]
[1742948421089,4.82951,2070.6,2070.5,0.72549499]
[1742948424092,4.82934,2070.7,2070.5,0.72549499]
[1742948424885,4.82934,2070.7,2070.6,14.5]
[1742948425363,4.82934,2070.7,2070.6,14.86441258]
[1742948426082,4.82934,2070.7,2070.6,0.36441258]
[1742948426585,4.82934,2070.7,2070.6,0.81432779]
[1742948428000,4.82934,2070.7,2070.6,1.17428041]
[1742948431773,4.82934,2070.7,2070.6,1.32593791]
[1742948431995,4.82934,2070.7,2070.6,0.96598529]
[1742948432574,4.82934,2070.7,2070.6,0.51607008]
[1742948432774,4.82952,2070.6,2070.3,19.33019]
[1742948432974,4.82952,2070.6,2070.4,1.77016341]
[1742948434508,4.82952,2070.6,2070.5,0.44983862]
[1742948435013,4.82952,2070.6,2070.5,0.80971268]
[1742948438378,4.82935,2070.7,2070.5,0.80971268]
[1742948438692,9.65884,2070.7,2070.5,0.80971268]
[1742948440204,9.65884,2070.7,2070.6,0.35987406]
[1742948440810,9.65884,2070.7,2070.6,0.80971268]
[1742948441174,9.65884,2070.7,2070.6,1.32571744]
[1742948443230,4.82935,2070.7,2070.6,1.32571744]
[1742948447279,7.82935,2070.7,2070.6,1.32571744]
[1742948447486,10.488897,2070.7,2070.6,1.32571744]
[1742948447713,10.488897,2070.7,2070.6,0.80971268]
[1742948447885,10.488897,2070.7,2070.6,1.32567394]
[1742948448518,10.488897,2070.7,2070.6,0.96579988]
[1742948450224,10.488897,2070.7,2070.6,0.51596126]
[1742948450610,7.83021,2070.3,2070.2,0.80971268]
[1742948456205,7.83021,2070.3,2070.2,1.32749061]
[1742948458311,9.69540151,2070.3,2070.2,1.32749061]
[1742948459138,9.69540151,2070.3,2070.2,0.96761655]
[1742948459838,9.69540151,2070.3,2070.2,0.51777793]
[1742948460333,7.83021,2070.3,2070.2,0.51777793]
[1742948461237,4.83091,2070.0,2069.9,14.5]
[1742948461436,4.83115,2069.9,2069.8,0.7862]
[1742948461642,4.83115,2069.9,2069.6,0.7862]
[1742948461934,4.83115,2069.9,2069.7,15.061816]
[1742948462143,4.83013,2070.4,2070.0,0.7854]
[1742948462333,3.0,2070.3,2070.0,0.7854]
[1742948462635,4.83046,2070.2,2070.0,0.7854]
[1742948462804,3.0,2070.3,2070.0,1.347065]
[1742948463009,7.8303,2070.3,2070.0,1.347065]
[1742948463646,4.8303,2070.3,2070.1,0.44986366]
[1742948463813,9.66017,2070.4,2070.1,0.44986366]
[1742948464205,9.66017,2070.4,2070.1,0.80990938]
[1742948464206,4.83026,2070.3,2070.1,0.80990938]
[1742948464438,4.83026,2070.3,2070.1,1.50871582]
[1742948464921,9.66066,2070.3,2070.1,1.50871582]
[1742948465442,4.83045,2070.2,2070.1,1.50871582]
[1742948465744,4.83045,2070.2,2070.1,14.94986366]
[1742948466244,4.83026,2070.3,2070.1,14.94986366]
[1742948466633,9.66067,2070.3,2070.1,14.94986366]
[1742948467142,4.83045,2070.2,2070.1,14.94986366]
[1742948467515,4.83045,2070.2,2070.1,14.5]
[1742948469144,4.82999,2070.4,2070.1,14.5]
[1742948469344,4.83027,2070.3,2070.1,16.92775793]
[1742948470248,5.5817,2070.6,2070.2,4.83036]
[1742948470448,7.82976,2070.5,2070.3,0.7838]
[1742948470614,12.65971,2070.5,2070.3,0.7838]
[1742948470955,12.65971,2070.5,2070.1,7.25832793]
[1742948470956,12.65971,2070.5,2070.2,0.44991108]
[1742948471151,7.82976,2070.5,2070.4,0.51856838]
[1742948471348,4.83012,2070.4,2070.2,0.80985051]
[1742948471860,4.83021,2070.3,2070.2,0.80985051]
[1742948472449,5.60151,2070.3,2070.2,0.44991108]
[1742948472654,8.60151,2070.3,2070.2,0.44991108]
[1742948472851,10.46334355,2070.3,2070.2,0.44991108]
[1742948473538,7.63591,2070.3,2070.2,0.44991108]
[1742948473954,6.86461,2070.3,2070.2,0.44991108]
[1742948474476,11.69502,2070.3,2070.0,0.81005127]
[1742948475144,11.69502,2070.3,2070.0,0.44991108]
[1742948475316,4.83046,2070.2,2070.0,0.44991108]
[1742948475516,4.83046,2070.2,2070.0,1.05641319]
[1742948475724,4.83046,2070.2,2070.0,0.60650211]
[1742948476737,4.83046,2070.2,2070.1,0.81054858]
[1742948479959,4.83046,2070.2,2070.1,0.360231]
[1742948481147,7.63591,2070.3,2070.1,0.360231]
[1742948481148,6.86461,2070.3,2070.1,0.360231]
[1742948481352,4.83029,2070.3,2070.1,1.144031]
[1742948481553,4.83029,2070.3,2070.1,1.88417586]
[1742948483125,4.83029,2070.3,2070.2,0.360231]